fUST/lending_fUST_20240918
["ID","MTS","AMOUNT","RATE_DAILY","PERIOD"]
[338431355,1726633848763,-2121.29,0.00019178,2]
[338431356,1726633848772,-2121.29,0.00019178,2]
[338431357,1726633848783,-1782.56,0.00019178,2]
[338431358,1726633848792,-500.0,0.00019178,2]
[338431359,1726633848802,-2121.29,0.00019178,2]
[338431360,1726633848813,-2121.29,0.00019178,2]
[338431361,1726633848823,-2121.29,0.00019178,2]
[338431362,1726633848833,-500.0,0.00019178,2]
[338431363,1726633848843,-2121.29,0.00019178,2]
[338431364,1726633848854,-2121.29,0.00019178,2]
[338431365,1726633848863,-2121.29,0.00019178,2]
[338431366,1726633848873,-2121.29,0.00019178,2]
[338431367,1726633848882,-2121.29,0.00019178,2]
[338431368,1726633848892,-2121.29,0.00019178,2]
[338431369,1726633848902,-2121.29,0.00019178,2]
[338431370,1726633848912,-2620.68,0.00019178,2]
[338431371,1726633848923,-2121.29,0.00019178,2]
[338431372,1726633848934,-2121.29,0.00019178,2]
[338431373,1726633848944,-2121.29,0.00019178,2]
[338431374,1726633848953,-500.0,0.00019178,2]
[338431375,1726633848964,-2121.29,0.00019178,2]
[338431376,1726633848975,-552.58,0.00019178,2]
[338431377,1726633848984,-2121.29,0.00019178,2]
[338431378,1726633848994,-2121.29,0.00019178,2]
[338431379,1726633849003,-2121.29,0.00019178,2]
[338431380,1726633849013,-2121.29,0.00019178,2]
[338431381,1726633849023,-2121.29,0.00019178,2]
[338431382,1726633849033,-2121.38618046,0.00019178,2]
[338431383,1726633849043,-794.54,0.00019178,2]
[338431384,1726633849052,-545.99,0.00019178,2]
[338431385,1726633849062,-1738.66,0.00019178,2]
[338431386,1726633849072,-929.97,0.00019178,2]
[338431387,1726633849082,-1783.01,0.00019178,2]
[338431388,1726633849093,-789.68,0.00019178,2]
[338431389,1726633849103,-500.0,0.00019178,2]
[338431390,1726633849113,-500.0,0.00019178,2]
[338431391,1726633849122,-500.0,0.00019178,2]
[338431392,1726633849131,-500.0,0.00019178,2]
[338431393,1726633849141,-769.52,0.00019178,2]
[338431394,1726633849151,-500.0,0.00019178,2]
[338431395,1726633849164,-180.090613,0.00019178,2]
[338431396,1726633849174,-500.29797112,0.00019178,2]
[338431397,1726633849186,-500.0,0.00019178,2]
[338431398,1726633849197,-180.090613,0.00019178,2]
[338431399,1726633849206,-909.73,0.00019178,2]
[338431400,1726633849216,-500.0,0.00019178,2]
[338431401,1726633849227,-973.49,0.00019178,2]
[338431402,1726633849238,-4271.23,0.00019178,2]
[338431403,1726633849247,-2223.46,0.00019178,2]
[338431404,1726633849257,-500.0,0.00019178,2]
[338431405,1726633849267,-500.0,0.00019178,2]
[338431406,1726633849277,-500.0,0.00019178,2]
[338431407,1726633849286,-500.0,0.00019178,2]
[338431408,1726633849296,-500.0,0.00019178,2]
[338431409,1726633849306,-2705.85,0.00019178,2]
[338431410,1726633849315,-500.0,0.00019178,2]
[338431411,1726633849325,-500.0,0.00019178,2]
[338431412,1726633849335,-500.0,0.00019178,2]
[338431413,1726633849345,-1179.8,0.00019178,2]
[338431414,1726633849354,-500.0,0.00019178,2]
[338431415,1726633849365,-500.0,0.00019178,2]
[338431416,1726633849375,-500.0,0.00019178,2]
[338431417,1726633849384,-509.54784208,0.00019178,2]
[338431418,1726633849396,-570.43579835,0.00019178,2]
[338431419,1726633849406,-1312.16,0.00019178,2]
[338431420,1726633849415,-2161.17,0.00019178,2]
[338431421,1726633849426,-500.0,0.00019178,2]
[338431422,1726633849435,-500.0,0.00019178,2]
[338431423,1726633849445,-500.0,0.00019178,2]
[338431424,1726633849454,-537.23,0.00019178,2]
[338431425,1726633849463,-500.0,0.00019178,2]
[338431426,1726633849474,-500.0,0.00019178,2]
[338431427,1726633849483,-500.0,0.00019178,2]
[338431428,1726633849494,-435.42923858,0.00019178,2]
[338431429,1726633849505,-1267.73,0.00019178,2]
[338431430,1726633849515,-844.84,0.00019178,2]
[338431431,1726633849526,-500.0,0.00019178,2]
[338431432,1726633849536,-500.0,0.00019178,2]
[338431433,1726633849546,-979.58,0.00019178,2]
[338431434,1726633849557,-500.0,0.00019178,2]
[338431435,1726633849568,-956.21,0.00019178,2]
[338431436,1726633849578,-751.52,0.00019178,2]
[338431437,1726633849588,-500.98752862,0.00019178,2]
[338431438,1726633849598,-500.0,0.00019178,2]
[338431439,1726633849608,-1583.15,0.00019178,2]
[338431440,1726633849618,-2520.23,0.00019178,2]
[338431441,1726633849630,-500.0,0.00019178,2]
[338431442,1726633849640,-5330.16,0.00019178,2]
[338431443,1726633849650,-500.0,0.00019178,2]
[338431444,1726633849661,-500.0,0.00019178,2]
[338431445,1726633849672,-500.0,0.00019178,2]
[338431446,1726633849683,-1026.26,0.00019178,2]
[338431447,1726633849694,-1635.02,0.00019178,2]
[338431448,1726633849703,-180.178352,0.00019178,2]
[338431449,1726633849712,-180.178352,0.00019178,2]
[338431450,1726633849722,-803.81,0.00019178,2]
[338431451,1726633849732,-500.0,0.00019178,2]
[338431452,1726633849744,-500.0,0.00019178,2]
[338431453,1726633849757,-1476.4,0.00019178,2]
[338431454,1726633849767,-2690.62,0.00019178,2]
[338431455,1726633849779,-513.79137478,0.00019178,2]
[338431456,1726633849790,-1683.57,0.00019178,2]
[338431457,1726633849800,-180.178352,0.00019178,2]
[338431458,1726633849809,-180.178352,0.00019178,2]
[338431459,1726633849818,-154.742121,0.00019178,2]
[338431460,1726633849827,-1425.19,0.00019178,2]
[338431461,1726633849836,-500.0,0.00019178,2]
[338431462,1726633849846,-3241.23,0.00019178,2]
[338431463,1726633849855,-1142.18,0.00019178,2]
[338431464,1726633849864,-500.0,0.00019178,2]
[338431465,1726633849873,-500.0,0.00019178,2]
[338431466,1726633849882,-500.0,0.00019178,2]
[338431467,1726633849891,-500.0,0.00019178,2]
[338431468,1726633849900,-500.0,0.00019178,2]
[338431469,1726633849909,-500.0,0.00019178,2]
[338431470,1726633849918,-500.0,0.00019178,2]
[338431471,1726633849927,-500.0,0.00019178,2]
[338431472,1726633849936,-500.0,0.00019178,2]
[338431473,1726633849947,-500.0,0.00019178,2]
[338431474,1726633849956,-500.0,0.00019178,2]
[338431475,1726633849967,-500.0,0.00019178,2]
[338431476,1726633849977,-500.0,0.00019178,2]
[338431477,1726633849987,-283.159142,0.00019178,2]
[338431478,1726633849997,-500.0,0.00019178,2]
[338431479,1726633850007,-505.85601518,0.00019178,2]
[338431480,1726633850018,-2583.13,0.00019178,2]
[338431481,1726633850029,-653.01,0.00019178,2]
[338431482,1726633850040,-500.0,0.00019178,2]
[338431483,1726633850051,-1896.54,0.00019178,2]
[338431484,1726633850061,-1468.42,0.00019178,2]
[338431485,1726633850072,-339.63620813,0.00019178,2]
[338431486,1726633850083,-500.0,0.00019178,2]
[338431487,1726633850093,-500.0,0.00019178,2]
[338431488,1726633850105,-155.996601,0.00019178,2]
[338431489,1726633850115,-500.0,0.00019178,2]
[338431490,1726633850126,-500.0,0.00019178,2]
[338431491,1726633850136,-500.0,0.00019178,2]
[338431492,1726633850146,-500.0,0.00019178,2]
[338431493,1726633850158,-500.0,0.00019178,2]
[338431494,1726633850171,-2350.51,0.00019178,2]
[338431495,1726633850182,-6050.51,0.00019178,2]
[338431496,1726633850193,-2888.67,0.00019178,2]
[338431497,1726633850203,-881.47,0.00019178,2]
[338431498,1726633850211,-772.98,0.00019178,2]
[338431499,1726633850221,-633.59,0.00019178,2]
[338431500,1726633850230,-500.0,0.00019178,2]
[338431501,1726633850239,-500.0,0.00019178,2]
[338431502,1726633850250,-500.0,0.00019178,2]
[338431503,1726633850260,-2547.63,0.00019178,2]
[338431504,1726633850270,-151.0,0.00019178,2]
[338431505,1726633850280,-2027.24,0.00019178,2]
[338431506,1726633850290,-151.0,0.00019178,2]
[338431507,1726633850301,-500.0,0.00019178,2]
[338431508,1726633850310,-151.0,0.00019178,2]
[338431509,1726633850322,-151.0,0.00019178,2]
[338431510,1726633850333,-151.0,0.00019178,2]
[338431511,1726633850343,-151.0,0.00019178,2]
[338431512,1726633850353,-500.0,0.00019178,2]
[338431513,1726633850513,-500.0,0.00019178,2]
[338431514,1726633850522,-2571.5,0.00019178,2]
[338431515,1726633850533,-2377.85,0.00019178,2]
[338431516,1726633850544,-1315.72,0.00019178,2]
[338431517,1726633850555,-500.0,0.00019178,2]
[338431518,1726633850564,-829.37,0.00019178,2]
[338431519,1726633850574,-500.0,0.00019178,2]
[338431520,1726633850585,-4882.15,0.00019178,2]
[338431521,1726633850595,-549.57,0.00019178,2]
[338431522,1726633850605,-151.0,0.00019178,2]
[338431523,1726633850615,-2316.63,0.00019178,2]
[338431524,1726633850624,-151.0,0.00019178,2]
[338431525,1726633850634,-665.11,0.00019178,2]
[338431526,1726633850644,-626.71542843,0.00019178,2]
[338431527,1726633850654,-797.79,0.00019178,2]
[338431528,1726633850663,-976.43,0.00019178,2]
[338431529,1726633850673,-500.0,0.00019178,2]
[338431530,1726633850682,-1423.79,0.00019178,2]
[338431531,1726633850691,-696.62,0.00019178,2]
[338431532,1726633850701,-500.0,0.00019178,2]
[338431533,1726633850710,-500.0,0.00019178,2]
[338431534,1726633850719,-500.0,0.00019178,2]
[338431535,1726633850729,-1215.15,0.00019178,2]
[338431536,1726633850739,-583.55,0.00019178,2]
[338431537,1726633850749,-500.0,0.00019178,2]
[338431538,1726633850758,-500.0,0.00019178,2]
[338431539,1726633850767,-500.0,0.00019178,2]
[338431540,1726633850777,-2229.25,0.00019178,2]
[338431541,1726633850786,-500.0,0.00019178,2]
[338431542,1726633850795,-1350.41,0.00019178,2]
[338431543,1726633850804,-500.0,0.00019178,2]
[338431544,1726633850813,-500.0,0.00019178,2]
[338431545,1726633850823,-5397.41,0.00019178,2]
[338431546,1726633850832,-500.0,0.00019178,2]
[338431547,1726633850841,-1325.82,0.00019178,2]
[338431548,1726633850850,-500.0,0.00019178,2]
[338431549,1726633850859,-913.07,0.00019178,2]
[338431550,1726633850869,-655.21,0.00019178,2]
[338431551,1726633850879,-2592.62,0.00019178,2]
[338431552,1726633850888,-500.0,0.00019178,2]
[338431553,1726633850898,-1251.5,0.00019178,2]
[338431554,1726633850908,-701.28,0.00019178,2]
[338431555,1726633850918,-500.0,0.00019178,2]
[338431556,1726633850927,-500.0,0.00019178,2]
[338431557,1726633850937,-2412.55,0.00019178,2]
[338431558,1726633850947,-500.0,0.00019178,2]
[338431559,1726633850956,-10340.94,0.00019178,2]
[338431560,1726633850966,-743.37,0.00019178,2]
[338431561,1726633850975,-767.41,0.00019178,2]
[338431562,1726633850985,-1365.09,0.00019178,2]
[338431563,1726633850995,-500.0,0.00019178,2]
[338431564,1726633851004,-500.0,0.00019178,2]
[338431565,1726633851013,-790.87,0.00019178,2]
[338431566,1726633851022,-500.0,0.00019178,2]
[338431567,1726633851032,-500.0,0.00019178,2]
[338431568,1726633851042,-20109.82,0.00019178,2]
[338431569,1726633851053,-500.0,0.00019178,2]
[338431570,1726633851063,-2029.26,0.00019178,2]
[338431571,1726633851073,-2771.79,0.00019178,2]
[338431572,1726633851082,-500.74867158,0.00019178,2]
[338431573,1726633851093,-1288.29,0.00019178,2]
[338431574,1726633851103,-1502.75,0.00019178,2]
[338431575,1726633851113,-500.0,0.00019178,2]
[338431576,1726633851126,-500.0,0.00019178,2]
[338431577,1726633851136,-4692.27,0.00019178,2]
[338431578,1726633851147,-1707.57,0.00019178,2]
[338431579,1726633851160,-500.0,0.00019178,2]
[338431580,1726633851172,-2478.98,0.00019178,2]
[338431581,1726633851182,-500.0,0.00019178,2]
[338431582,1726633851192,-765.73,0.00019178,2]
[338431583,1726633851206,-500.0,0.00019178,2]
[338431584,1726633851216,-500.0,0.00019178,2]
[338431585,1726633851225,-518.37211877,0.00019178,2]
[338431586,1726633851237,-1133.2,0.00019178,2]
[338431587,1726633851246,-500.0,0.00019178,2]
[338431588,1726633851257,-500.0,0.00019178,2]
[338431589,1726633851267,-1014.67,0.00019178,2]
[338431590,1726633851277,-500.0,0.00019178,2]
[338431591,1726633851287,-1917.92,0.00019178,2]
[338431592,1726633851297,-4575.52,0.00019178,2]
[338431593,1726633851307,-500.0,0.00019178,2]
[338431594,1726633851318,-500.0,0.00019178,2]
[338431595,1726633851329,-500.0,0.00019178,2]
[338431596,1726633851342,-500.0,0.00019178,2]
[338431597,1726633851351,-567.1,0.00019178,2]
[338431598,1726633851360,-500.0,0.00019178,2]
[338431599,1726633851371,-2129.46,0.00019178,2]
[338431600,1726633851383,-500.0,0.00019178,2]
[338431601,1726633851395,-500.0,0.00019178,2]
[338431602,1726633851405,-500.0,0.00019178,2]
[338431603,1726633851416,-500.0,0.00019178,2]
[338431604,1726633851427,-500.0,0.00019178,2]
[338431605,1726633851437,-500.0,0.00019178,2]
[338431606,1726633851448,-500.0,0.00019178,2]
[338431607,1726633851465,-500.0,0.00019178,2]
[338431608,1726633851474,-500.0,0.00019178,2]
[338431609,1726633851483,-151.0,0.00019178,2]
[338431610,1726633851492,-500.0,0.00019178,2]
[338431611,1726633851501,-151.0,0.00019178,2]
[338431612,1726633851511,-382.56079052,0.00019178,2]
[338431613,1726633851519,-500.0,0.00019178,2]
[338431614,1726633851528,-500.0,0.00019178,2]
[338431615,1726633851537,-500.0,0.00019178,2]
[338431616,1726633851546,-500.0,0.00019178,2]
[338431617,1726633851555,-511.27479549,0.00019178,2]
[338431618,1726633851564,-500.0,0.00019178,2]
[338431619,1726633851573,-500.0,0.00019178,2]
[338431620,1726633851583,-500.0,0.00019178,2]
[338431621,1726633851593,-500.0,0.00019178,2]
[338431622,1726633851603,-500.0,0.00019178,2]
[338431623,1726633851613,-500.0,0.00019178,2]
[338431624,1726633851622,-500.0,0.00019178,2]
[338431625,1726633851631,-500.0,0.00019178,2]
[338431626,1726633851641,-500.0,0.00019178,2]
[338431627,1726633851650,-233.194947,0.00019178,2]
[338431628,1726633851659,-548.54,0.00019178,2]
[338431629,1726633851669,-500.0,0.00019178,2]
[338431630,1726633851679,-2968.88,0.00019178,2]
[338431631,1726633851689,-151.0,0.00019178,2]
[338431632,1726633851706,-169.53195245,0.00019178,2]
[338431633,1726633851715,-176.78123077,0.00019178,2]
[338431634,1726633851724,-2338.7,0.00019178,2]
[338431635,1726633851734,-500.0,0.00019178,2]
[338431636,1726633851745,-151.0,0.00019178,2]
[338431637,1726633851754,-500.0,0.00019178,2]
[338431638,1726633851763,-526.12118235,0.00019178,2]
[338431639,1726633851771,-2561.08,0.00019178,2]
[338431640,1726633851780,-500.0,0.00019178,2]
[338431641,1726633851789,-500.0,0.00019178,2]
[338431642,1726633851798,-500.0,0.00019178,2]
[338431643,1726633851808,-1410.58,0.00019178,2]
[338431644,1726633851817,-778.06,0.00019178,2]
[338431645,1726633851826,-500.0,0.00019178,2]
[338431646,1726633851837,-782.26,0.00019178,2]
[338431647,1726633851847,-4417.11,0.00019178,2]
[338431648,1726633851857,-181.02839688,0.00019178,2]
[338431649,1726633851868,-500.0,0.00019178,2]
[338431650,1726633851877,-2852.27,0.00019178,2]
[338431651,1726633851888,-836.94,0.00019178,2]
[338431652,1726633851898,-500.0,0.00019178,2]
[338431653,1726633851909,-522.21529011,0.00019178,2]
[338431654,1726633851919,-2250.32,0.00019178,2]
[338431655,1726633851929,-3014.66,0.00019178,2]
[338431656,1726633851938,-500.0,0.00019178,2]
[338431657,1726633851948,-548.11545847,0.00019178,2]
[338431658,1726633851957,-500.0,0.00019178,2]
[338431659,1726633851966,-500.0,0.00019178,2]
[338431660,1726633851976,-500.0,0.00019178,2]
[338431661,1726633851986,-532.45933118,0.00019178,2]
[338431662,1726633851995,-500.0,0.00019178,2]
[338431663,1726633852004,-2522.05,0.00019178,2]
[338431664,1726633852014,-151.0,0.00019178,2]
[338431665,1726633852023,-976.1,0.00019178,2]
[338431666,1726633852033,-151.0,0.00019178,2]
[338431667,1726633852043,-2547.69,0.00019178,2]
[338431668,1726633852054,-500.0,0.00019178,2]
[338431669,1726633852063,-3675.2,0.00019178,2]
[338431670,1726633852075,-500.0,0.00019178,2]
[338431671,1726633852086,-500.0,0.00019178,2]
[338431672,1726633852096,-857.8,0.00019178,2]
[338431673,1726633852106,-500.0,0.00019178,2]
[338431674,1726633852116,-696.35,0.00019178,2]
[338431675,1726633852126,-929.75,0.00019178,2]
[338431676,1726633852136,-1479.67,0.00019178,2]
[338431677,1726633852146,-1573.26,0.00019178,2]
[338431678,1726633852159,-500.0,0.00019178,2]
[338431679,1726633852170,-2224.36,0.00019178,2]
[338431680,1726633852180,-500.0,0.00019178,2]
[338431681,1726633852192,-2589.44,0.00019178,2]
[338431682,1726633852204,-2417.44,0.00019178,2]
[338431683,1726633852215,-500.0,0.00019178,2]
[338431684,1726633852227,-231.62673947,0.00019178,2]
[338431685,1726633852238,-500.0,0.00019178,2]
[338431686,1726633852248,-565.01973332,0.00019178,2]
[338431687,1726633852261,-500.0,0.00019178,2]
[338431688,1726633852272,-602.88926032,0.00019178,2]
[338431689,1726633852283,-500.0,0.00019178,2]
[338431690,1726633852294,-500.0,0.00019178,2]
[338431691,1726633852304,-500.0,0.00019178,2]
[338431692,1726633852314,-950.96,0.00019178,2]
[338431693,1726633852325,-2238.04,0.00019178,2]
[338431694,1726633852336,-296.28077995,0.00019178,2]
[338431695,1726633852347,-500.0,0.00019178,2]
[338431696,1726633852360,-503.92245172,0.00019178,2]
[338431697,1726633852371,-1480.75,0.00019178,2]
[338431698,1726633852383,-86345.18,0.00019178,2]
[338431699,1726633852394,-2399.33,0.00019178,2]
[338431700,1726633852405,-500.0,0.00019178,2]
[338431701,1726633852414,-151.0,0.00019178,2]
[338431702,1726633852425,-500.0,0.00019178,2]
[338431703,1726633852436,-2145.2,0.00019178,2]
[338431704,1726633852445,-500.0,0.00019178,2]
[338431705,1726633852458,-500.0,0.00019178,2]
[338431706,1726633852469,-2690.53,0.00019178,2]
[338431707,1726633852481,-556.87925275,0.00019178,2]
[338431708,1726633852491,-1063.76,0.00019178,2]
[338431709,1726633852503,-1879.22,0.00019178,2]
[338431710,1726633852514,-1000.0,0.00019178,2]
[338431711,1726633852524,-2706.18,0.00019178,2]
[338431712,1726633852534,-1295.28,0.00019178,2]
[338431713,1726633852544,-221.740558,0.00019178,2]
[338431714,1726633852554,-221.740558,0.00019178,2]
[338431715,1726633852563,-500.0,0.00019178,2]
[338431716,1726633852574,-3428.87,0.00019178,2]
[338431717,1726633852586,-658.58,0.00019178,2]
[338431718,1726633852596,-2511.81,0.00019178,2]
[338431719,1726633852606,-761.96,0.00019178,2]
[338431720,1726633852616,-500.0,0.00019178,2]
[338431721,1726633852626,-221.740558,0.00019178,2]
[338431722,1726633852637,-221.740558,0.00019178,2]
[338431723,1726633852647,-500.0,0.00019178,2]
[338431724,1726633852657,-1024.02,0.00019178,2]
[338431725,1726633852670,-2368.01,0.00019178,2]
[338431726,1726633852680,-506.91216179,0.00019178,2]
[338431727,1726633852692,-500.0,0.00019178,2]
[338431728,1726633852703,-227.97090615,0.00019178,2]
[338431729,1726633852713,-500.0,0.00019178,2]
[338431730,1726633852723,-500.0,0.00019178,2]
[338431731,1726633852732,-500.0,0.00019178,2]
[338431732,1726633852743,-4139.49,0.00019178,2]
[338431733,1726633852754,-739.96,0.00019178,2]
[338431734,1726633852763,-500.0,0.00019178,2]
[338431735,1726633852772,-1245.85,0.00019178,2]
[338431736,1726633852781,-500.0,0.00019178,2]
[338431737,1726633852790,-500.0,0.00019178,2]
[338431738,1726633852799,-500.0,0.00019178,2]
[338431739,1726633852809,-151.0,0.00019178,2]
[338431740,1726633852819,-153.218523,0.00019178,2]
[338431741,1726633852830,-151.597584,0.00019178,2]
[338431742,1726633852841,-2456.7,0.00019178,2]
[338431743,1726633852852,-500.0,0.00019178,2]
[338431744,1726633852862,-151.597584,0.00019178,2]
[338431745,1726633852872,-1079.14,0.00019178,2]
[338431746,1726633852883,-392.2508556,0.00019178,2]
[338431747,1726633852894,-1079.14,0.00019178,2]
[338431748,1726633852905,-2713.95,0.00019178,2]
[338431749,1726633852916,-1079.14,0.00019178,2]
[338431750,1726633852926,-681.31,0.00019178,2]
[338431751,1726633852936,-1079.14,0.00019178,2]
[338431752,1726633852948,-765.58,0.00019178,2]
[338431753,1726633852958,-1079.14,0.00019178,2]
[338431754,1726633852968,-1079.14,0.00019178,2]
[338431755,1726633852979,-1079.14,0.00019178,2]
[338431756,1726633852990,-1079.14,0.00019178,2]
[338431757,1726633852999,-500.0,0.00019178,2]
[338431758,1726633853009,-1079.14,0.00019178,2]
[338431759,1726633853018,-500.0,0.00019178,2]
[338431760,1726633853029,-1079.14,0.00019178,2]
[338431761,1726633853039,-1079.14,0.00019178,2]
[338431762,1726633853051,-10328.85,0.00019178,2]
[338431763,1726633853062,-1079.14,0.00019178,2]
[338431764,1726633853072,-1079.14,0.00019178,2]
[338431765,1726633853083,-1079.14,0.00019178,2]
[338431766,1726633853094,-1079.14,0.00019178,2]
[338431767,1726633853251,-1079.14,0.00019178,2]
[338431768,1726633853261,-1792.34,0.00019178,2]
[338431769,1726633853271,-1079.14,0.00019178,2]
[338431770,1726633853283,-500.0,0.00019178,2]
[338431771,1726633853295,-1079.14,0.00019178,2]
[338431772,1726633853306,-1079.14,0.00019178,2]
[338431773,1726633853316,-501.94453394,0.00019178,2]
[338431774,1726633853325,-1079.14,0.00019178,2]
[338431775,1726633853335,-500.0,0.00019178,2]
[338431776,1726633853345,-1079.14,0.00019178,2]
[338431777,1726633853358,-1079.14,0.00019178,2]
[338431778,1726633853367,-1079.14,0.00019178,2]
[338431779,1726633853377,-1079.21861078,0.00019178,2]
[338431780,1726633853386,-500.0,0.00019178,2]
[338431781,1726633853396,-500.0,0.00019178,2]
[338431782,1726633853405,-500.0,0.00019178,2]
[338431783,1726633853415,-500.0,0.00019178,2]
[338431784,1726633853424,-1243.87,0.00019178,2]
[338431785,1726633853434,-2026.74,0.00019178,2]
[338431786,1726633853443,-151.0,0.00019178,2]
[338431787,1726633853453,-151.597584,0.00019178,2]
[338431788,1726633853463,-1168.88,0.00019178,2]
[338431789,1726633853472,-151.0,0.00019178,2]
[338431790,1726633853481,-151.597584,0.00019178,2]
[338431791,1726633853490,-500.0,0.00019178,2]
[338431792,1726633853499,-2033.2,0.00019178,2]
[338431793,1726633853508,-500.0,0.00019178,2]
[338431794,1726633853518,-500.0,0.00019178,2]
[338431795,1726633853527,-166.310883,0.00019178,2]
[338431796,1726633853537,-169.82467,0.00019178,2]
[338431797,1726633853548,-151.0,0.00019178,2]
[338431798,1726633853560,-151.0,0.00019178,2]
[338431799,1726633853570,-151.0,0.00019178,2]
[338431800,1726633853580,-151.0,0.00019178,2]
[338431801,1726633853591,-1200.85,0.000192,2]
[338431802,1726633853600,-150.112233,0.000192,2]
[338431803,1726633853611,-155.367411,0.000192,2]
[338431804,1726633853623,-21204.43,0.000192,2]
[338431805,1726633853633,-44662.21,0.000192,2]
[338431806,1726633853642,-282836.42,0.000192,2]
[338431807,1726633853653,-151.0,0.000192,2]
[338431808,1726633853664,-151.0,0.000192,2]
[338431809,1726633853675,-151.0,0.000192,2]
[338431810,1726633853685,-1589.032028,0.000192,2]
[338431811,1726633853696,-1589.032028,0.000192,2]
[338431812,1726633853706,-205.875145,0.000192,2]
[338431813,1726633853717,-151.0,0.000192,2]
[338431814,1726633853728,-205.875145,0.000192,2]
[338431815,1726633853740,-264.603723,0.000192,2]
[338431816,1726633853750,-151.0,0.000192,2]
[338431817,1726633853759,-151.0,0.000192,2]
[338431818,1726633853771,-270.764994,0.000192,2]
[338431819,1726633853782,-156.160307,0.000192,2]
[338431820,1726633853794,-156.160307,0.000192,2]
[338431821,1726633853803,-825.33236,0.000192,2]
[338431822,1726633853814,-825.33236,0.000192,2]
[338431823,1726633853824,-165.325,0.000192,2]
[338431824,1726633853835,-165.325,0.000192,2]
[338431825,1726633853845,-151.0,0.000192,2]
[338431826,1726633853856,-187.780047,0.000192,2]
[338431827,1726633853867,-187.780047,0.000192,2]
[338431828,1726633853876,-151.0,0.000192,2]
[338431829,1726633853886,-1237.797605,0.000192,2]
[338431830,1726633853897,-1237.797605,0.000192,2]
[338431831,1726633853908,-4000.0,0.000192,2]
[338431832,1726633853917,-4000.0,0.000192,2]
[338431833,1726633853926,-2084.780151,0.000192,2]
[338431834,1726633853935,-151.0,0.000192,2]
[338431835,1726633853945,-151.0,0.000192,2]
[338431836,1726633853955,-180.090613,0.000192,2]
[338431837,1726633853964,-180.090613,0.000192,2]
[338431838,1726633853974,-170.795866,0.000192,2]
[338431839,1726633853983,-188.840492,0.000192,2]
[338431840,1726633853993,-170.795866,0.000192,2]
[338431841,1726633854002,-188.840492,0.000192,2]
[338431842,1726633854011,-155.461562,0.000192,2]
[338431843,1726633854021,-155.562212,0.000192,2]
[338431844,1726633854030,-151.491314,0.000192,2]
[338431845,1726633854040,-151.0,0.000192,2]
[338431846,1726633854049,-180.178352,0.000192,2]
[338431847,1726633854058,-180.178352,0.000192,2]
[338431848,1726633854067,-151.0,0.000192,2]
[338431849,1726633854076,-151.0,0.000192,2]
[338431850,1726633854086,-154.795383,0.000192,2]
[338431851,1726633854095,-151.0,0.000192,2]
[338431852,1726633854104,-151.0,0.000192,2]
[338431853,1726633854113,-151.0,0.000192,2]
[338431854,1726633854123,-151.0,0.000192,2]